Cogmind - Beta 14 @@@ ROGUE MODE // 2024.10.09 @ 06:26:57 Player: Gabe+Kate4EVR Result: Destroyed by X-62 Marksman with Pulse Rifle Performance ------------- Evolutions (2) 1000 Regions Visited (6) 1200 Robots Destroyed (28) 140 Value Destroyed (862) 862 Prototype IDs (1) 20 Alien Tech Used (0) 0 Bonus (294) 294 TOTAL SCORE: 3516 Bonus ------- Follower Combat Kills 112 Entered Garrisons 200 Friendly Fire -18 Cogmind --------- Core Integrity 0/550 Matter 276/300 Energy 16/100 System Corruption 0% Temperature Cool (9) Movement Core (50) Location -8/Garrison Parts ------- > --- POWER (1) -------- (None) > --- PROPULSION (6) --- (None) > --- UTILITY (2) ------ (None) > --- WEAPON (2) ------- (None) > --- INVENTORY (5) ---- Light Deuterium Engine Flight Unit Improved Heat Sink Improved Light Armor Plating Beam Cannon Peak State ------------ > --- POWER ------------ Light Nuclear Core > --- PROPULSION ------- Aluminum Leg Aluminum Leg Aluminum Leg Aluminum Leg Carbon-fiber Leg Improved Carbon-fiber Leg > --- UTILITY ---------- Improved Cooling System High-capacity Storage Unit > --- WEAPON ----------- Particle Gun Heavy Laser > --- INVENTORY -------- Ion Engine Improved Ion Engine Light Deuterium Engine Flight Unit Flight Unit Flight Unit Improved Heat Sink High-capacity Storage Unit Improved Terrain Scanner Improved Weapon Shielding Improved Light Armor Plating Hacking Suite Sensor Drone Bay Beam Cannon Beam Cannon Beam Cannon Beam Cannon Beam Cannon Hammer Heavy Hammer [Rating: 29] Favorites ----------- Power Improved Ion Engine Engine Improved Ion Engine Power Core Light Nuclear Core Propulsion Aluminum Leg Leg Aluminum Leg Flight Unit Flight Unit Utility Improved Heat Sink Device Improved Heat Sink Storage Medium Storage Unit Protection Light Armor Plating Weapon Beam Cannon Energy Gun Particle Gun Energy Cannon Beam Cannon Ballistic Gun Minigun Ballistic Cannon Enhanced Gauss Cannon Build | -11 -10 -10 -9 -9 -8 -8 ------- Run | Yrd Mat Min Mat Min Mat Gar Slots Evolved 4 | . . . 2 . 2 . Power . | . . . . . . . Propulsion 4 | . . . 2 . 2 . Utility . | . . . . . . . Weapon . | . . . . . . . Parts Attached 43 | 2 7 . 11 4 5 14 Power 6 | 1 . . 1 . . 4 Engine 4 | 1 . . 1 . . 2 Core 2 | . . . . . . 2 Reactor . | . . . . . . . Propulsion 19 | . 3 . 7 1 3 5 Treads . | . . . . . . . Leg 18 | . 3 . 7 1 3 4 Wheel . | . . . . . . . Hover . | . . . . . . . Flight 1 | . . . . . . 1 Utility 10 | 1 2 . 1 3 1 2 Device 4 | . . . 1 2 . 1 Storage 5 | 1 1 . . 1 1 1 Processor . | . . . . . . . Hackware . | . . . . . . . Protection 1 | . 1 . . . . . Artifact . | . . . . . . . Weapon 8 | . 2 . 2 . 1 3 Energy Gun 2 | . . . . . . 2 Energy Cannon 4 | . 2 . 2 . . . Ballistic Gun 1 | . . . . . 1 . Ballistic Cannon 1 | . . . . . . 1 Launcher . | . . . . . . . Special Weapon . | . . . . . . . Impact Weapon . | . . . . . . . Slashing Weapon . | . . . . . . . Piercing Weapon . | . . . . . . . Special Melee Weapon . | . . . . . . . Unidentified Prototypes 1 | . . . . 1 . . Parts Lost 18 | . . . 1 . 1 16 Power 3 | . . . . . . 3 Propulsion 13 | . . . 1 . 1 11 Utility 1 | . . . . . . 1 Weapon 1 | . . . . . . 1 Highest Loss Streak 11 | . . . 1 . 1 11 To Critical Strikes . | . . . . . . . Average Slot Usage (%) 93 | . 81 100 90 100 99 88 Engine 10 | . 14 14 11 11 9 4 Leg 38 | . 17 28 35 44 53 45 Device 7 | . . . 6 11 9 8 Storage 11 | . 14 14 11 11 9 9 Protection 3 | . 10 14 4 . . . Energy Cannon 19 | . 23 28 22 22 15 6 Ballistic Gun 1 | . . . . . 2 6 Peak Build Rating 29 | 2 7 8 13 18 19 29 Average Rating 12 | 1 5 7 10 13 16 21 On Entrance 8 | . 2 7 8 13 13 19 Naked Turns 3 | . . . . . . 3 Heaviest Build 57 | 8 22 22 24 54 54 57 Greatest Support 73 | 3 20 20 40 40 60 73 Greatest Overweight (x) 7 | 2 7 1 7 1 1 2 Average Overweight (x) . | 1 1 1 . . . . Largest Inventory Capacity 20 | 8 10 10 10 20 20 20 Average Capacity 14 | 7 9 10 10 14 20 19 Most Carried 20 | . 9 10 10 11 17 20 Average Carried 10 | . 4 9 9 10 13 18 Final Capacity 20 | 8 10 10 10 20 20 5 Final Carried 17 | . 9 10 10 11 17 5 Class Distribution -------------------- 67% | Scavenger-Mutant 32% | Mutant Dominant Class ---------------- Mutant | -10/Materials Mutant | -10/Mines Scavenger-Mutant | -9/Materials Scavenger-Mutant | -9/Mines Scavenger-Mutant | -8/Materials Scavenger-Mutant | -8/Garrison Resources | -11 -10 -10 -9 -9 -8 -8 ----------- Run | Yrd Mat Min Mat Min Mat Gar Matter Collected 673 | 85 110 83 170 30 60 135 Remotely . | . . . . . . . Salvage Created 1062 | . 110 44 377 106 72 353 Parts 50 | . 7 3 21 1 2 16 Haulers Intercepted . | . . . . . . . Recyclers Shooed 1 | . . . 1 . . . Parts Field Recycled . | . . . . . . . Retrieved Matter . | . . . . . . . Parts Self-Destructed . | . . . . . . . Prevented . | . . . . . . . Kills | -11 -10 -10 -9 -9 -8 -8 ------- Run | Yrd Mat Min Mat Min Mat Gar Combat Hostiles Destroyed 29 | . 3 3 8 4 2 9 Guns 5 | . . . . . . 5 Cannons 22 | . 3 3 6 4 2 4 Classes Destroyed 9 | . 1 1 3 2 1 1 Worker 1 | . . . . . 1 . Recycler 1 | . . . . 1 . . Watcher 1 | . . . 1 . . . Swarmer 7 | . . 3 . . 1 3 Grunt 14 | . 3 . 5 . 1 5 Duelist 1 | . . . 1 . . . Sentry 2 | . . . 2 . . . Specialist 1 | . . . . . . 1 Assembled 4 | . . . . 4 . . Best Kill Streak 6 | . 3 3 3 4 2 6 Combat Bots Only 6 | . 3 3 3 4 1 6 Max Kills in Single Turn 2 | . 2 1 1 2 1 2 Gunslinging 1 | . . . . . . 1 Exploded . | . . . . . . . Melee . | . . . . . . . Uniques/NPCs Destroyed . | . . . . . . . Combat | -11 -10 -10 -9 -9 -8 -8 -------- Run | Yrd Mat Min Mat Min Mat Gar Hostile Shots Fired 258 | . 11 5 53 18 18 153 Missed 56 | . 2 1 11 4 4 34 Damage Taken 2926 | . 99 40 514 177 167 1929 Core 659 | . 12 10 61 11 13 552 Absorbed by Shields . | . . . . . . . Core Remaining (%) 91 | 100 . 91 . 82 . . Volleys Fired 91 | . 7 4 32 9 12 27 Largest 2 | . 2 2 2 2 2 2 Hottest 134 | . 120 120 120 120 120 134 Shots Fired 180 | . 14 8 64 18 24 52 Gun 35 | . . . . . . 35 Cannon 145 | . 14 8 64 18 24 17 Launcher . | . . . . . . . Special . | . . . . . . . Kinetic 17 | . . . . . . 17 Thermal 163 | . 14 8 64 18 24 35 Explosive . | . . . . . . . Electromagnetic . | . . . . . . . Robot Hit Streak 11 | . 5 8 11 6 7 8 Robot Miss Streak 6 | . 2 1 6 3 2 3 Penetration Max . | . . . . . . . Secondary Targets 1 | . . . . . . 1 Max Gunslinging Chain 1 | . . . . . . 1 Shots Hit Robots 108 | . 9 4 38 10 15 32 Core Hits 38 | . 3 3 9 5 4 14 Critical Kills 2 | . . . 1 . 1 . Critical Parts Destroyed . | . . . . . . . Critical Strikes 2 | . . . 1 . 1 . Meltdown 2 | . . . 1 . 1 . Melee Attacks . | . . . . . . . Impact . | . . . . . . . Slashing . | . . . . . . . Piercing . | . . . . . . . Sneak Attacks . | . . . . . . . Combat Hostiles . | . . . . . . . Follow-up Attacks . | . . . . . . . Damage Inflicted 2042 | . 175 70 685 209 279 624 Guns 363 | . . . . . . 363 Cannons 1673 | . 175 70 679 209 279 261 Explosions . | . . . . . . . Melee . | . . . . . . . Ramming 6 | . . . 6 . . . Kinetic 212 | . . . . . . 212 Thermal 1824 | . 175 70 679 209 279 412 Explosive . | . . . . . . . Electromagnetic . | . . . . . . . Impact . | . . . . . . . Slashing . | . . . . . . . Piercing . | . . . . . . . Highest Corruption . | . . . . . . . Average Corruption . | . . . . . . . Corruption Purged . | . . . . . . . Corruption Blocked . | . . . . . . . Overload Shots . | . . . . . . . Overflow Damage 4 | . . . 4 . . . Projectiles 4 | . . . 4 . . . Explosions . | . . . . . . . Melee . | . . . . . . . Knockbacks 1 | . . . . . . 1 Impact . | . . . . . . . Kinetic 1 | . . . . . . 1 Secondary . | . . . . . . . Self-Inflicted Damage . | . . . . . . . Shots . | . . . . . . . Rammed . | . . . . . . . Targets Rammed 5 | . . . 5 . . . Kicked 5 | . . . 5 . . . Crushed . | . . . . . . . Highest Temperature 562 | . 180 207 562 60 81 52 Average Temperature 107 | . 85 102 183 22 27 19 Received Heat Transfer 1094 | . 54 . 264 20 72 684 Effects 12 | . . . 12 . . . Shutdowns 4 | . . . 4 . . . Energy Bleed 2 | . . . 2 . . . Interference 3 | . . . 3 . . . Matter Decay 1 | . . . 1 . . . Short Circuit 1 | . . . 1 . . . Damage (minor) 1 | . . . 1 . . . Siege Activations . | . . . . . . . Robots Corrupted . | . . . . . . . Combat Hostiles . | . . . . . . . Parts Fried . | . . . . . . . Impact Corruptions . | . . . . . . . Robots Melted 3 | . . . 2 . 1 . Combat Hostiles 2 | . . . 2 . . . Parts Melted 11 | . . . 6 . 3 2 Heat Transferred 3748 | . 370 148 1443 444 592 751 Parts Sabotaged . | . . . . . . . Parts Stolen . | . . . . . . . Parts Stripped . | . . . . . . . Power Chain Reactions . | . . . . . . . Alert | -11 -10 -10 -9 -9 -8 -8 ------- Run | Yrd Mat Min Mat Min Mat Gar Peak Influence 340 | . 70 85 275 111 101 340 Initial 106 | . . . 33 106 1 65 Average 89 | . 44 45 131 64 58 196 Maximum Alert Level 1 | . . . 1 . . 1 Low Security (%) 86 | 100 100 100 69 100 100 45 Level 1 13 | . . . 30 . . 54 Level 2 . | . . . . . . . Level 3 . | . . . . . . . Level 4 . | . . . . . . . Level 5 . | . . . . . . . High Security . | . . . . . . . Max Security . | . . . . . . . Squads Dispatched 2 | . 1 . . . 1 . Investigation 1 | . 1 . . . . . Extermination . | . . . . . . . Reinforcement 1 | . . . . . 1 . Assault . | . . . . . . . Garrison . | . . . . . . . Intercept . | . . . . . . . Searches Triggered . | . . . . . . . Construction Impeded . | . . . . . . . Haulers Reinforced . | . . . . . . . Active Scanning Responses . | . . . . . . . Cargo Convoy Interrupts . | . . . . . . . Stealth | -11 -10 -10 -9 -9 -8 -8 --------- Run | Yrd Mat Min Mat Min Mat Gar Distress Signals 2 | . . . 2 . . . Communications Jammed . | . . . . . . . Distress Signals . | . . . . . . . Times Spotted 51 | . 3 3 12 9 6 18 Peak Tracking Total 9 | . 3 1 3 9 3 5 Tactical Retreats . | . . . . . . . Traps | -11 -10 -10 -9 -9 -8 -8 ------- Run | Yrd Mat Min Mat Min Mat Gar Traps Triggered 2 | . 1 . . . . 1 Indirectly . | . . . . . . . Trap Hack Attempts . | . . . . . . . Triggered . | . . . . . . . Disarmed . | . . . . . . . Reprogrammed . | . . . . . . . Reused . | . . . . . . . Traps Extracted . | . . . . . . . Installed . | . . . . . . . Triggered . | . . . . . . . Machines | -11 -10 -10 -9 -9 -8 -8 ---------- Run | Yrd Mat Min Mat Min Mat Gar Machines Disabled . | . . . . . . . Max in Single Turn . | . . . . . . . Machines Repaired . | . . . . . . . Machines Dismantled . | . . . . . . . Machines Sabotaged . | . . . . . . . Overloaded Fab Kills . | . . . . . . . Hacking | -11 -10 -10 -9 -9 -8 -8 --------- Run | Yrd Mat Min Mat Min Mat Gar Machines Accessed 6 | . 2 . . 1 2 1 Terminals 4 | . 2 . . . 1 1 Fabricators . | . . . . . . . Repair Stations . | . . . . . . . Recycling Units . | . . . . . . . Scanalyzers . | . . . . . . . Garrison Access 1 | . . . . . 1 . Total Hacks 15 | . 5 . . 1 6 3 Successful 9 | . 3 . . 1 4 1 Failed 6 | . 2 . . . 2 2 Catastrophic 1 | . . . . . . 1 Database Lockouts . | . . . . . . . Manual 4 | . . . . . 4 . Terminals 12 | . 5 . . . 4 3 Fabricators . | . . . . . . . Repair Stations . | . . . . . . . Recycling Units . | . . . . . . . Scanalyzers . | . . . . . . . Garrison Access 2 | . . . . . 2 . Terminal Hacks 8 | . 3 . . 1 3 1 Robot Analysis 1 | . 1 . . . . . Open Door 1 | . . . . 1 . . Branch Access Points 1 | . 1 . . . . . Emergency Access Points 1 | . . . . . . 1 Alert Level 1 | . 1 . . . . . Unreport Threat 2 | . . . . . 2 . Locate Traps 1 | . . . . . 1 . Fabricator Hacks . | . . . . . . . Repair Station Hacks . | . . . . . . . Recycling Unit Hacks . | . . . . . . . Scanalyzer . | . . . . . . . Garrison Access Hacks 1 | . . . . . 1 . Unlock Access 1 | . . . . . 1 . Unauthorized Hacks . | . . . . . . . Terminals . | . . . . . . . Fabricators . | . . . . . . . Repair Stations . | . . . . . . . Recycling Units . | . . . . . . . Scanalyzers . | . . . . . . . Garrison Access . | . . . . . . . Data Cores Recovered . | . . . . . . . Used . | . . . . . . . Hacking Detections 3 | . 1 . . . 1 1 Full Trace Events 1 | . . . . . . 1 Feedback Events . | . . . . . . . Feedback Blocked . | . . . . . . . Robot Schematics Acquired . | . . . . . . . Robots Built . | . . . . . . . Authchips . | . . . . . . . Time . | . . . . . . . Total Robot Build Rating . | . . . . . . . Part Schematics Acquired . | . . . . . . . Parts Built . | . . . . . . . Authchips . | . . . . . . . Time . | . . . . . . . Total Part Build Rating . | . . . . . . . Parts Repaired . | . . . . . . . Time . | . . . . . . . Parts Recycled . | . . . . . . . Recycled Matter . | . . . . . . . Retrieved Matter . | . . . . . . . Retrieved Components . | . . . . . . . Parts Scanalyzed . | . . . . . . . Part Schematics Acquired . | . . . . . . . Parts Damaged . | . . . . . . . Bothacking | -11 -10 -10 -9 -9 -8 -8 ------------ Run | Yrd Mat Min Mat Min Mat Gar Used RIF Installer . | . . . . . . . Robots Hacked . | . . . . . . . Non-combat . | . . . . . . . Combat . | . . . . . . . Robot Hacks Applied . | . . . . . . . Relay Couplers Released . | . . . . . . . Fabnet Peak Effective % . | . . . . . . . Robots Rewired . | . . . . . . . Allies Hacked . | . . . . . . . Hacks Repelled . | . . . . . . . Allies | -11 -10 -10 -9 -9 -8 -8 -------- Run | Yrd Mat Min Mat Min Mat Gar Total Allies 3 | . . . . 3 . . Largest Group 3 | . . . . 3 3 3 Highest-Rated Group 40 | . . . . 40 40 40 Highest-Rated Ally 16 | . . . . 16 16 16 Total Orders . | . . . . . . . Ally Attacks 51 | . . . . 19 7 25 Total Damage 533 | . . . . 214 78 241 Kills 14 | . . . . 6 3 5 Allies Corrupted . | . . . . . . . Allies Melted . | . . . . . . . Intel | -11 -10 -10 -9 -9 -8 -8 ------- Run | Yrd Mat Min Mat Min Mat Gar Robot Analysis Total 1 | . 1 . . . . . Derelict Logs Recovered 2 | . . 1 . 1 . . Drone Launches . | . . . . . . . Drone Recoveries . | . . . . . . . Exploration | -11 -10 -10 -9 -9 -8 -8 ------------- Run | Yrd Mat Min Mat Min Mat Gar Turns Passed 2154 | 40 400 126 298 678 255 357 Spaces Moved 1117 | 34 173 60 117 419 171 143 Core 83 | 34 46 . 1 . . 2 Treads . | . . . . . . . Legs 1034 | . 127 60 116 419 171 141 Wheels . | . . . . . . . Hover . | . . . . . . . Flight . | . . . . . . . Fastest Speed 50 | 50 150 190 120 120 120 50 Average Speed 151 | 111 204 190 142 148 120 130 Slowest Speed 400 | 150 400 190 400 190 190 260 Overloaded Moves . | . . . . . . . Propulsion Burnouts . | . . . . . . . Robots Hopped . | . . . . . . . Cave-ins Triggered . | . . . . . . . Exploration Rate (%) 31 | 4 26 34 15 87 17 34 Regions Visited 6 Branch Regions 2 Pre-discovered Areas . | . . . . . . . Known Exits Taken 3 | . 1 . . 1 1 . Unknown Exits Taken 3 | 1 . 1 1 . . . Scrap Searched 3 | . . 1 . 2 . . Spaces Dug . | . . . . . . . Terrain Destroyed . | . . . . . . . Melee . | . . . . . . . Projectile . | . . . . . . . AOE . | . . . . . . . Terrain Rammed . | . . . . . . . Walls Destroyed . | . . . . . . . Machines Disabled . | . . . . . . . Actions | -11 -10 -10 -9 -9 -8 -8 --------- Run | Yrd Mat Min Mat Min Mat Gar Total 1404 | 35 202 64 183 460 195 265 Wait 104 | . 8 . 11 18 . 67 Move 1112 | 33 172 59 116 418 171 143 Hop . | . . . . . . . Pick Up 23 | . 7 1 1 4 6 4 Fast Attach 25 | 2 6 . 4 2 2 9 Attach 6 | . . . 2 . 2 2 Detach 2 | . 1 . . . 1 . Swap 12 | . 1 . 5 2 1 3 Drop 24 | . . . 7 7 . 10 Fire 91 | . 7 4 32 9 12 27 Melee . | . . . . . . . Ram . | . . . . . . . Kick 5 | . . . 5 . . . Crush . | . . . . . . . Escape Stasis . | . . . . . . . Rewire . | . . . . . . . Trap . | . . . . . . . Miscellaneous . | . . . . . . . Route ------- -11/Scrapyard -10/Materials -10/Mines -9/Materials (discovered 2 exits: Mat / *Min) -9/Mines -8/Materials -8/Garrison History --------- Turn | Location | Event 6 | -11/Scrapyard | Discovered new exit (range 15) 41 | -11/Scrapyard | Entered Materials 314 | -10/Materials | Build established: Mutant 327 | -10/Materials | Identified exit to Mines 441 | -10/Materials | Entered Mines 463 | -10/Mines | Met a Derelict bent on vengeance 548 | -10/Mines | Discovered new exit (range 11) 551 | -10/Mines | Learned 2 Materials zone layouts 567 | -10/Mines | Entered Materials 567 | -9/Materials | Evolved 2 slots: Propulsion x2 568 | -9/Materials | Identified exit to Materials 844 | -9/Materials | Discovered new exit (range 15) 865 | -9/Materials | Entered Mines 870 | -9/Mines | Assisted by bots powering up and referring to "LRC-V3" 945 | -9/Mines | Assembled infested the area 950 | -9/Mines | Assisted by a Guerilla fighting off Assembled 974 | -9/Mines | Build established: Scavenger-Mutant 1005 | -9/Mines | Discovered exit to Materials (range 7) 1154 | -9/Mines | Found the Drone Emporium 1161 | -9/Mines | Found Prototype Device 1161 | -9/Mines | Identified Sensor Drone Bay 1221 | -9/Mines | Learned Materials stockpile data 1543 | -9/Mines | Entered Materials 1543 | -8/Materials | Accompanied by 3 allies 1543 | -8/Materials | Evolved 2 slots: Propulsion x2 1798 | -8/Materials | Identified exit to Garrison 1798 | -8/Materials | Entered Garrison 1798 | -8/Garrison | Accompanied by 3 allies 1924 | -8/Garrison | Triggered checkpoint 1999 | -8/Garrison | Lost 5 parts (1p4n) 2146 | -8/Garrison | Core integrity fell below 50% 2153 | -8/Garrison | Core integrity fell below 20% 2155 | -8/Garrison | Destroyed by X-62 Marksman with Pulse Rifle Last Messages --------------- 02143_ X-62 Marksman knocked back. 02144_ Penetrated by Slug. 02144_ Imp. Cooling System destroyed. 02145_ Penetrated by Slug. 02145_ Slug penetrates X-62 Marksman. 02146_ Penetrated by Slug. 02146_ Ion Engine destroyed. 02147_ Penetrated by Slug. 02147_ Dropped Hcp. Storage Unit. 02148_ Acquired Hcp. Storage Unit. 02148_ Slug penetrates Wall. 02148_ Penetrated by Slug. 02148_ Flight Unit destroyed. 02150_ Penetrated by Slug. 02150_ Dropped Hcp. Storage Unit. 02151_ Slug penetrates Wall. 02152_ Penetrated by Slug. 02152_ Dropped Enh. Gauss Cannon. 02153_ Penetrated by Slug. 02155_ Slug penetrates Wall. Map ----- +----------------------------------------------------+ | ?????" %! [ #??????????????????????????? | | ?????" ]! %* #??????????????????????????? | | ?????# ## ## % ###??????????????????????????? | | ????## ## ## [ #????????????????????????????? | | ??? #????????????????????????????? | | ??? +????+???????????????????????? | | ?+???# #????????????????????????????? | | ?????## ##""""## ##????????????????????????????? | | ??????# ????????# #?????????????????????????????? | | ??????#?????????# ##????????????????????????????? | | ????????????????# T#????????????????????????????? | | ??????+?????????# ##????????????????????????????? | | ????????????????# #????????????????+????????????? | | +???????????????# #?????????????????????????????? | | ????????????????# #####+######+#????????????????? | | ????????????????# #????????????????? | | +??????+????????# "%*%[ #????????????????? | | ????????????????######%+###### ???????????? | | ?????????????????????#% #?????????####???????????? | | ?????????????????##### #????????????????????????? | | +????????????????# *#????????????????????????? | | ???????????????### ###??????????????????????? | | ???????????????#"" x #??????????????????????? | | ???????????????#"! % !|]#??????????????????????? | | ???????????????#"[ ///x%!=#??????????????????????? | | ???????????????#"] + x]!@#??????????????????????? | | ???????????????#"!?+x//[!=#??????????????????????? | | ???+???????????#"??+++/!!!#??????????????????????? | | ???????????????#"?? !]!]#??????????????????????? | | ????????????????"" !/ #??????????????????????? | | ???????????????#"""!![! #??????????????????????? | | ???????????????#""""""""" #??????????????????????? | | ????????????????###########??????????????????????? | | ?????????????????????????????????????????????????? | | ?????????????????????????????????????????????????? | | ?????????????????????????????????????????????????? | | ?????????????????????????????????????????????????? | | ?????????????????????????????????????????????????? | | ?????????????????????????????????????????????????? | | ?????????????????????????????????????????????????? | | ?????????????????????????????????????????????????? | | ?????????????????????????????????????????????????? | | ?????????????????????????????????????????????????? | | ?????????????????????????????????????????????????? | | ?????????????????????????????????????????????????? | | ?????????????????????????????????????????????????? | | ?????????????????????????????????????????????????? | | ?????????????????????????????????????????????????? | | ?????????????????????????????????????????????????? | | ?????????????????????????????????????????????????? | +----------------------------------------------------+ Best States ------------- Heat Dissipation 58 Energy Generation 16 Energy Capacity 290 Matter Stores 300 Matter Capacity 300 Sight Range 16 Terrain Scan Density 10 Armor Coverage 150 Evasion (%) 55 Item Schematics ----------------- None Robot Schematics ------------------ None Fabricated ------------ Nothing Alien Tech Used ----------------- None Achievements -------------- None Challenges ------------ None Game ------ Seed AssemblyPhasingBasin Manual? 0 Play Time 00:11:36 Cumulative 190.9 hours Start 2024.10.09 @ 06:15:46 End 2024.10.09 @ 06:26:57 Sessions 1 Manual Loads 0 Difficulty Rogue Special Mode None Game No. 374 Rogue 374 Adventurer 0 Explorer 0 Win Type - Total 0 Types 0/0/0/0/0/0/0/0/0 Lore% 36 Gallery% 63 Achievement% 48 Wizard Run 0 Options --------- Layout 0 ASCII 0 Keyboard 1 Movement Numpad Keybinds 0 Fullscreen 2 Font 18/X11 Map View 76x50 Zoom Use 0% Tactical HUD 1 Map Filters NONE Filters NONE Steam 1 RUN: 35954136-4cad-459f-86a8-d293e865c361